Cogmind - Beta 14 @@@ ROGUE MODE // 2025.03.26 @ 17:58:50 Player: King Of Bel Result: Destroyed by G-47 Trooper with Particle Gun Performance ------------- Evolutions (3) 1500 Regions Visited (8) 1600 Robots Destroyed (55) 275 Value Destroyed (1541) 1541 Prototype IDs (26) 520 Alien Tech Used (0) 0 Bonus (324) 324 TOTAL SCORE: 5760 Bonus ------- High Alert Combat Kills 24 Aligned with FarCom 300 Cogmind --------- Core Integrity 0/700 Matter 239/300 Energy 100/100 System Corruption 8% Temperature Warm (134) Movement Core (700) Ox13 Location -7/Factory Parts ------- > --- POWER (1) -------- (None) > --- PROPULSION (6) --- (None) > --- UTILITY (4) ------ High-capacity Storage Unit > --- WEAPON (2) ------- (None) > --- INVENTORY (20) --- Light Deuterium Engine Light Nuclear Core Armored Huge Wheel Powered Armor Powered Armor Gauss Rifle Peak State ------------ > --- POWER ------------ Heavy Deuterium Engine > --- PROPULSION ------- Aluminum Leg Aluminum Leg Aluminum Leg Improved Aluminum Leg Armored Huge Wheel > --- UTILITY ---------- Improved Terrain Scanner Improved Targeting Computer Powered Armor Powered Armor > --- WEAPON ----------- Heavy Ion Cannon Minigun > --- INVENTORY -------- Light Deuterium Engine High-capacity Storage Unit Gauss Rifle [Rating: 38] Favorites ----------- Power Light Ion Engine Engine Light Ion Engine Power Core Light Nuclear Core Propulsion Aluminum Leg Leg Aluminum Leg Wheel Armored Huge Wheel Flight Unit Flight Unit Utility Improved Terrain Scanner Device Improved Terrain Scanner Storage Small Storage Unit Processor Melee Analysis Suite Hackware Hacking Suite Protection Powered Armor Weapon Light Assault Rifle Energy Gun Small Laser Energy Cannon Heavy Ion Cannon Ballistic Gun Light Assault Rifle Slashing Weapon Katana Build | -11 -10 -10 -10 -9 -8 -7 -7 -7 ------- Run | Yrd Mat Min Exi Min Mat Fac Was Fac Slots Evolved 6 | . . . . . 4 2 . . Power . | . . . . . . . . . Propulsion 4 | . . . . . 2 2 . . Utility 2 | . . . . . 2 . . . Weapon . | . . . . . . . . . Parts Attached 76 | 7 10 3 1 3 20 6 3 23 Power 13 | 1 2 1 . 1 3 3 1 1 Engine 10 | 1 2 1 . 1 3 1 . 1 Core 3 | . . . . . . 2 1 . Reactor . | . . . . . . . . . Propulsion 34 | 2 6 . . 2 8 3 2 11 Treads . | . . . . . . . . . Leg 25 | 2 6 . . 2 2 1 2 10 Wheel 1 | . . . . . . . . 1 Hover . | . . . . . . . . . Flight 8 | . . . . . 6 2 . . Utility 15 | 2 . 1 . . 4 . . 8 Device 5 | 1 . 1 . . 2 . . 1 Storage 4 | 1 . . . . . . . 3 Processor 3 | . . . . . 1 . . 2 Hackware 1 | . . . . . 1 . . . Protection 2 | . . . . . . . . 2 Artifact . | . . . . . . . . . Weapon 14 | 2 2 1 1 . 5 . . 3 Energy Gun 4 | 2 1 . . . 1 . . . Energy Cannon 2 | . . . . . . . . 2 Ballistic Gun 7 | . 1 1 1 . 3 . . 1 Ballistic Cannon . | . . . . . . . . . Launcher . | . . . . . . . . . Special Weapon . | . . . . . . . . . Impact Weapon . | . . . . . . . . . Slashing Weapon 1 | . . . . . 1 . . . Piercing Weapon . | . . . . . . . . . Special Melee Weapon . | . . . . . . . . . Unidentified Prototypes 3 | . . . . . 1 . 1 1 Parts Lost 28 | . 1 . . . 8 . 7 12 Power 2 | . . . . . 2 . . . Propulsion 14 | . . . . . 4 . 2 8 Utility 7 | . . . . . 2 . 3 2 Weapon 5 | . 1 . . . . . 2 2 Highest Loss Streak 12 | . 1 . . . 6 . 7 12 To Critical Strikes . | . . . . . . . . . Average Slot Usage (%) 87 | . 99 100 91 85 83 99 62 58 Engine 8 | . 14 14 14 14 6 . . 6 Core 1 | . . . . . . 6 5 . Leg 20 | . 28 28 28 28 9 15 10 19 Flight 8 | . . . . . 21 30 17 . Device 12 | . 14 14 14 14 13 15 8 5 Storage 7 | . 14 14 14 14 3 . . 3 Processor 3 | . . . . . 8 7 4 7 Hackware 2 | . . . . . 8 7 4 . Energy Gun 6 | . 20 14 7 . . . . . Ballistic Gun 10 | . 7 14 13 14 10 15 8 4 Peak Build Rating 38 | 9 9 9 23 25 32 29 29 38 Average Rating 18 | 5 8 9 15 24 23 28 19 23 On Entrance 15 | . 9 9 9 23 25 23 29 11 Naked Turns 22 | . . . . . . . 22 . Heaviest Build 63 | 12 14 11 19 19 19 15 15 63 Greatest Support 53 | 20 20 20 20 23 25 17 23 53 Greatest Overweight (x) 13 | . . . . . 3 . 3 13 Average Overweight (x) . | . . . . . . . . . Largest Inventory Capacity 20 | 8 8 8 8 8 8 5 5 20 Average Capacity 7 | 7 8 8 8 8 5 5 5 10 Most Carried 8 | 6 8 8 8 8 8 5 5 7 Average Carried 5 | 4 7 7 8 7 4 4 4 4 Final Capacity 20 | 8 8 8 8 8 5 5 5 20 Final Carried 8 | 6 8 8 8 8 5 5 3 7 Class Distribution -------------------- 56% | Scavenger-Mutant 20% | Mutant 11% | Skirmisher 8% | Scavenger-Skirmisher Dominant Class ---------------- Scavenger-Mutant | -10/Materials Scavenger-Mutant | -10/Mines Mutant | -10/Exiles Skirmisher | -9/Mines Scavenger-Mutant | -8/Materials Scavenger-Mutant | -7/Factory Scavenger-Mutant | -7/Waste Skirmisher | -7/Factory Resources | -11 -10 -10 -10 -9 -8 -7 -7 -7 ----------- Run | Yrd Mat Min Exi Min Mat Fac Was Fac Matter Collected 979 | 185 214 41 . 40 172 . . 327 Remotely . | . . . . . . . . . Salvage Created 1979 | 11 640 81 . 204 766 . . 277 Parts 125 | 1 41 10 . 9 53 . . 11 Haulers Intercepted 2 | . 1 . . . 1 . . . Recyclers Shooed . | . . . . . . . . . Parts Field Recycled . | . . . . . . . . . Retrieved Matter . | . . . . . . . . . Parts Self-Destructed . | . . . . . . . . . Prevented . | . . . . . . . . . Kills | -11 -10 -10 -10 -9 -8 -7 -7 -7 ------- Run | Yrd Mat Min Exi Min Mat Fac Was Fac Combat Hostiles Destroyed 44 | . 16 3 . 4 16 . . 5 Melee 1 | . . . . . 1 . . . Guns 40 | . 16 3 . 4 15 . . 2 Cannons 3 | . . . . . . . . 3 Classes Destroyed 12 | 1 6 . . 1 3 . . 1 Worker 1 | . . . . . 1 . . . Builder 1 | . . . . . 1 . . . Tunneler 2 | 1 . 1 . . . . . . Hauler 2 | . 1 . . . 1 . . . Recycler 1 | . 1 . . . . . . . Operator 1 | . 1 . . . . . . . Watcher 3 | . 1 . . . 2 . . . Swarmer 14 | . 6 3 . . 5 . . . Grunt 24 | . 10 . . 2 9 . . 3 Duelist 2 | . . . . 2 . . . . Sentry 2 | . . . . . 2 . . . Hunter 2 | . . . . . . . . 2 Best Kill Streak 9 | 1 7 2 . 2 9 . . 2 Combat Bots Only 6 | . 6 2 . 2 5 . . 2 Max Kills in Single Turn 2 | 1 1 2 . 1 1 . . 1 Gunslinging 1 | . . 1 . . . . . . Exploded . | . . . . . . . . . Melee 1 | . . . . . 1 . . . Uniques/NPCs Destroyed . | . . . . . . . . . Combat | -11 -10 -10 -10 -9 -8 -7 -7 -7 -------- Run | Yrd Mat Min Exi Min Mat Fac Was Fac Hostile Shots Fired 347 | . 92 12 . 2 119 . 6 116 Missed 75 | . 11 . . 1 35 . 2 26 Damage Taken 3779 | . 817 94 . 12 899 . 176 1781 Core 1174 | . 210 16 . . 245 . 143 560 Absorbed by Shields 12 | . . . . . 12 . . . Core Remaining (%) 54 | 100 . . . 9 55 . . . Volleys Fired 114 | 3 61 12 . . 17 . . 21 Largest 2 | 2 2 2 . . 2 . . 2 Hottest 90 | 90 90 60 . . 63 . . 90 Shots Fired 298 | 6 116 23 . 13 99 . . 41 Gun 278 | 6 116 23 . 13 99 . . 21 Cannon 20 | . . . . . . . . 20 Launcher . | . . . . . . . . . Special . | . . . . . . . . . Kinetic 166 | . 29 12 . 13 91 . . 21 Thermal 132 | 6 87 11 . . 8 . . 20 Explosive . | . . . . . . . . . Electromagnetic . | . . . . . . . . . Robot Hit Streak 23 | 2 12 4 . 3 23 . . 14 Robot Miss Streak 5 | 1 5 2 . 3 3 . . 3 Penetration Max 1 | . . . . . 1 . . . Secondary Targets 5 | . 3 1 . . 1 . . . Max Gunslinging Chain 1 | . 1 1 . . 1 . . . Autonomous 87 | . . . . 13 74 . . . Shots Hit Robots 188 | 4 74 6 . 8 69 . . 27 Core Hits 83 | 1 35 5 . 5 28 . . 9 Critical Kills . | . . . . . . . . . Critical Parts Destroyed . | . . . . . . . . . Critical Strikes 6 | . 6 . . . . . . . Burn 6 | . 6 . . . . . . . Melee Attacks 5 | . . . . . 5 . . . Impact . | . . . . . . . . . Slashing 5 | . . . . . 5 . . . Piercing . | . . . . . . . . . Sneak Attacks . | . . . . . . . . . Combat Hostiles . | . . . . . . . . . Follow-up Attacks . | . . . . . . . . . Damage Inflicted 3940 | 45 846 64 . 229 2210 . . 546 Guns 3447 | 45 831 61 . 229 2059 . . 222 Cannons 324 | . . . . . . . . 324 Explosions . | . . . . . . . . . Melee 151 | . . . . . 151 . . . Ramming 18 | . 15 3 . . . . . . Kinetic 2618 | . 144 15 . 229 2008 . . 222 Thermal 1153 | 45 687 46 . . 51 . . 324 Explosive . | . . . . . . . . . Electromagnetic . | . . . . . . . . . Impact . | . . . . . . . . . Slashing 151 | . . . . . 151 . . . Piercing . | . . . . . . . . . Highest Corruption 8 | . . . . . . . 8 8 Average Corruption 8 | . . . . . . . 8 8 Corruption Purged . | . . . . . . . . . Corruption Blocked . | . . . . . . . . . Effects 19 | . . . . . . . 3 16 Message Errors 6 | . . . . . . . 1 5 Matter Fused 5 | . . . . . . . 1 4 Heat Flow Errors 3 | . . . . . . . 1 2 Energy Discharges 1 | . . . . . . . . 1 Data Loss (minor) 3 | . . . . . . . . 3 Weapon Failures 1 | . . . . . . . . 1 Overload Shots . | . . . . . . . . . Overflow Damage . | . . . . . . . . . Projectiles . | . . . . . . . . . Explosions . | . . . . . . . . . Melee . | . . . . . . . . . Knockbacks . | . . . . . . . . . Impact . | . . . . . . . . . Kinetic . | . . . . . . . . . Secondary . | . . . . . . . . . Self-Inflicted Damage . | . . . . . . . . . Shots . | . . . . . . . . . Rammed . | . . . . . . . . . Targets Rammed 3 | . 2 1 . . . . . . Kicked 3 | . 2 1 . . . . . . Crushed . | . . . . . . . . . Highest Temperature 392 | 60 348 40 . . 110 . 213 392 Average Temperature 94 | 27 99 15 . . 49 . 147 119 Received Heat Transfer 963 | . 246 . . 6 243 . . 468 Effects 1 | . . . . . . . . 1 Shutdowns 1 | . . . . . . . . 1 Siege Activations . | . . . . . . . . . Robots Corrupted . | . . . . . . . . . Combat Hostiles . | . . . . . . . . . Parts Fried . | . . . . . . . . . Impact Corruptions . | . . . . . . . . . Robots Melted 1 | . 1 . . . . . . . Combat Hostiles . | . . . . . . . . . Parts Melted 9 | . 9 . . . . . . . Heat Transferred 3105 | 124 2326 100 . . 111 . . 444 Parts Sabotaged . | . . . . . . . . . Parts Stolen . | . . . . . . . . . Parts Stripped . | . . . . . . . . . Power Chain Reactions . | . . . . . . . . . Alert | -11 -10 -10 -10 -9 -8 -7 -7 -7 ------- Run | Yrd Mat Min Exi Min Mat Fac Was Fac Peak Influence 501 | 5 395 219 . 110 501 219 11 65 Initial 219 | . 3 114 . . 42 219 11 . Average 147 | 1 187 187 . 66 273 170 4 11 Maximum Alert Level 2 | . 1 1 . . 2 1 . . Low Security (%) 56 | 100 51 31 . 100 39 24 100 100 Level 1 37 | . 48 68 . . 24 75 . . Level 2 5 | . . . . . 35 . . . Level 3 . | . . . . . . . . . Level 4 . | . . . . . . . . . Level 5 . | . . . . . . . . . High Security . | . . . . . . . . . Max Security . | . . . . . . . . . Squads Dispatched 12 | . 4 . . . 2 2 . 4 Investigation 6 | . 2 . . . . 2 . 2 Extermination . | . . . . . . . . . Reinforcement 4 | . 2 . . . 2 . . . Assault . | . . . . . . . . . Garrison 2 | . . . . . . . . 2 Intercept . | . . . . . . . . . Searches Triggered . | . . . . . . . . . Construction Impeded 1 | . . . . . 1 . . . Haulers Reinforced . | . . . . . . . . . Active Scanning Responses . | . . . . . . . . . Cargo Convoy Interrupts . | . . . . . . . . . Stealth | -11 -10 -10 -10 -9 -8 -7 -7 -7 --------- Run | Yrd Mat Min Exi Min Mat Fac Was Fac Distress Signals 7 | . 3 . . . 4 . . . Communications Jammed . | . . . . . . . . . Distress Signals . | . . . . . . . . . Times Spotted 74 | . 23 3 . 3 30 1 6 8 Peak Tracking Total 10 | . 6 3 . 2 10 1 6 3 Tactical Retreats 10 | . 3 1 . . 6 . . . Traps | -11 -10 -10 -10 -9 -8 -7 -7 -7 ------- Run | Yrd Mat Min Exi Min Mat Fac Was Fac Traps Triggered 2 | . . . . . . 1 . 1 Indirectly . | . . . . . . . . . Trap Hack Attempts . | . . . . . . . . . Triggered . | . . . . . . . . . Disarmed . | . . . . . . . . . Reprogrammed . | . . . . . . . . . Reused . | . . . . . . . . . Traps Extracted . | . . . . . . . . . Installed . | . . . . . . . . . Triggered . | . . . . . . . . . Machines | -11 -10 -10 -10 -9 -8 -7 -7 -7 ---------- Run | Yrd Mat Min Exi Min Mat Fac Was Fac Machines Disabled 2 | . . . . . 2 . . . Max in Single Turn 1 | . . . . . 1 . . . Machines Repaired . | . . . . . . . . . Machines Dismantled . | . . . . . . . . . Machines Sabotaged . | . . . . . . . . . Overloaded Fab Kills . | . . . . . . . . . Hacking | -11 -10 -10 -10 -9 -8 -7 -7 -7 --------- Run | Yrd Mat Min Exi Min Mat Fac Was Fac Machines Accessed 11 | . 4 . 1 . 2 2 . 2 Terminals 8 | . 3 . . . 2 1 . 2 Fabricators 1 | . . . . . . 1 . . Repair Stations . | . . . . . . . . . Recycling Units 1 | . 1 . . . . . . . Scanalyzers . | . . . . . . . . . Garrison Access . | . . . . . . . . . Total Hacks 31 | . 15 . 1 . 7 4 . 4 Successful 14 | . 9 . 1 . 4 . . . Failed 17 | . 6 . . . 3 4 . 4 Catastrophic 5 | . 1 . . . 1 1 . 2 Database Lockouts . | . . . . . . . . . Manual 14 | . 9 . 1 . 3 . . 1 Terminals 25 | . 12 . . . 7 2 . 4 Fabricators 2 | . . . . . . 2 . . Repair Stations . | . . . . . . . . . Recycling Units 3 | . 3 . . . . . . . Scanalyzers . | . . . . . . . . . Garrison Access . | . . . . . . . . . Terminal Hacks 6 | . 3 . 1 . 2 . . . Record 3 | . 1 . . . 2 . . . Branch Access Points 1 | . 1 . . . . . . . Locate Traps 1 | . 1 . . . . . . . Derelict Proto ID Bank 1 | . . . 1 . . . . . Fabricator Hacks . | . . . . . . . . . Repair Station Hacks . | . . . . . . . . . Recycling Unit Hacks 2 | . 2 . . . . . . . Report Inventory 1 | . 1 . . . . . . . Retrieve Matter 1 | . 1 . . . . . . . Scanalyzer . | . . . . . . . . . Garrison Access Hacks . | . . . . . . . . . Unauthorized Hacks 6 | . 4 . . . 2 . . . Terminals 6 | . 4 . . . 2 . . . Track 3 | . 2 . . . 1 . . . Assimilate 3 | . 2 . . . 1 . . . Fabricators . | . . . . . . . . . Repair Stations . | . . . . . . . . . Recycling Units . | . . . . . . . . . Scanalyzers . | . . . . . . . . . Garrison Access . | . . . . . . . . . Data Cores Recovered . | . . . . . . . . . Used . | . . . . . . . . . Hacking Detections 10 | . 4 . . . 2 2 . 2 Full Trace Events 9 | . 4 . . . 1 2 . 2 Feedback Events . | . . . . . . . . . Feedback Blocked . | . . . . . . . . . Robot Schematics Acquired . | . . . . . . . . . Robots Built . | . . . . . . . . . Authchips . | . . . . . . . . . Time . | . . . . . . . . . Total Robot Build Rating . | . . . . . . . . . Part Schematics Acquired . | . . . . . . . . . Parts Built . | . . . . . . . . . Authchips . | . . . . . . . . . Time . | . . . . . . . . . Total Part Build Rating . | . . . . . . . . . Parts Repaired . | . . . . . . . . . Time . | . . . . . . . . . Parts Recycled . | . . . . . . . . . Recycled Matter . | . . . . . . . . . Retrieved Matter . | . . . . . . . . . Retrieved Components . | . . . . . . . . . Parts Scanalyzed . | . . . . . . . . . Part Schematics Acquired . | . . . . . . . . . Parts Damaged . | . . . . . . . . . Bothacking | -11 -10 -10 -10 -9 -8 -7 -7 -7 ------------ Run | Yrd Mat Min Exi Min Mat Fac Was Fac Used RIF Installer . | . . . . . . . . . Robots Hacked . | . . . . . . . . . Non-combat . | . . . . . . . . . Combat . | . . . . . . . . . Robot Hacks Applied . | . . . . . . . . . Relay Couplers Released . | . . . . . . . . . Fabnet Peak Effective % . | . . . . . . . . . Robots Rewired . | . . . . . . . . . Allies Hacked . | . . . . . . . . . Hacks Repelled . | . . . . . . . . . Allies | -11 -10 -10 -10 -9 -8 -7 -7 -7 -------- Run | Yrd Mat Min Exi Min Mat Fac Was Fac Total Allies 1 | . . . . . . . 1 . Largest Group 1 | . . . . . . . 1 . Highest-Rated Group 31 | . . . . . . . 31 . Highest-Rated Ally 31 | . . . . . . . 31 . Total Orders . | . . . . . . . . . Ally Attacks 1 | . . . . . . . 1 . Total Damage . | . . . . . . . . . Kills . | . . . . . . . . . Allies Corrupted . | . . . . . . . . . Allies Melted . | . . . . . . . . . Intel | -11 -10 -10 -10 -9 -8 -7 -7 -7 ------- Run | Yrd Mat Min Exi Min Mat Fac Was Fac Robot Analysis Total . | . . . . . . . . . Derelict Logs Recovered 1 | . . 1 . . . . . . Drone Launches . | . . . . . . . . . Drone Recoveries . | . . . . . . . . . Exploration | -11 -10 -10 -10 -9 -8 -7 -7 -7 ------------- Run | Yrd Mat Min Exi Min Mat Fac Was Fac Turns Passed 3344 | 86 695 429 260 134 511 528 111 590 Spaces Moved 2282 | 54 410 325 215 106 422 338 112 300 Core 59 | 5 . . . . 2 . 49 3 Treads . | . . . . . . . . . Legs 1645 | 49 410 325 215 106 202 129 63 146 Wheels 151 | . . . . . . . . 151 Hover . | . . . . . . . . . Flight 427 | . . . . . 218 209 . . Fastest Speed 31 | 50 120 120 120 120 31 51 50 100 Average Speed 109 | 113 120 120 120 120 90 81 96 136 Slowest Speed 700 | 120 120 120 120 120 300 130 200 700 Overloaded Moves . | . . . . . . . . . Propulsion Burnouts . | . . . . . . . . . Robots Hopped . | . . . . . . . . . Cave-ins Triggered . | . . . . . . . . . Exploration Rate (%) 38 | 5 69 60 62 28 31 9 77 6 Regions Visited 8 Branch Regions 3 Pre-discovered Areas 1 | . . 1 . . . . . . Known Exits Taken 1 | . 1 . . . . . . . Unknown Exits Taken 5 | 1 . 1 1 1 1 . . . Scrap Searched . | . . . . . . . . . Spaces Dug . | . . . . . . . . . Terrain Destroyed 62 | . . . . 11 48 . . 3 Melee . | . . . . . . . . . Projectile 62 | . . . . 11 48 . . 3 AOE . | . . . . . . . . . Terrain Rammed . | . . . . . . . . . Walls Destroyed . | . . . . . . . . . Machines Disabled . | . . . . . . . . . Actions | -11 -10 -10 -10 -9 -8 -7 -7 -7 --------- Run | Yrd Mat Min Exi Min Mat Fac Was Fac Total 2910 | 69 507 344 217 114 516 592 114 437 Wait 376 | . 6 . . . 45 245 . 80 Move 2275 | 53 409 324 214 105 421 338 111 300 Hop . | . . . . . . . . . Pick Up 23 | 6 6 1 . 2 2 1 . 5 Fast Attach 39 | 7 1 . 1 . 10 . 1 19 Attach 16 | . . . . . 9 3 2 2 Detach 9 | . . . . . 4 1 . 4 Swap 21 | . 9 3 . 3 1 3 . 2 Drop 29 | . 13 3 2 4 2 1 . 4 Fire 114 | 3 61 12 . . 17 . . 21 Melee 5 | . . . . . 5 . . . Ram . | . . . . . . . . . Kick 3 | . 2 1 . . . . . . Crush . | . . . . . . . . . Escape Stasis . | . . . . . . . . . Rewire . | . . . . . . . . . Trap . | . . . . . . . . . Miscellaneous . | . . . . . . . . . Route ------- -11/Scrapyard -10/Materials (discovered 5 exits: [*Mat x3] / *Min x2) -10/Mines -10/Exiles -9/Mines -8/Materials -7/Factory -7/Waste -7/Factory History --------- Turn | Location | Event 18 | -11/Scrapyard | Discovered new exit (range 15) 87 | -11/Scrapyard | Entered Materials 303 | -10/Materials | Discovered new exit (range 10) 313 | -10/Materials | Build established: Mutant 377 | -10/Materials | Discovered new exit (range 8) 442 | -10/Materials | Core integrity fell below 50% 540 | -10/Materials | Discovered new exit (range 7) 565 | -10/Materials | Discovered new exit (range 7) 620 | -10/Materials | Build established: Scavenger-Mutant 697 | -10/Materials | Core integrity fell below 20% 751 | -10/Materials | Discovered new exit (range 16) 763 | -10/Materials | Identified exit to Mines 782 | -10/Materials | Entered Mines 1003 | -10/Mines | Found a hidden stash of uninstalled traps 1188 | -10/Mines | Learned location of Storage (-8) 1205 | -10/Mines | Deemed a non-threat by the Exiles lab entrance 1205 | -10/Mines | Discovered new exit (range 5) 1211 | -10/Mines | Entered Exiles 1240 | -10/Exiles | Met 8R-AWN 1261 | -10/Exiles | Met EX-HEX 1293 | -10/Exiles | Met EX-BIN 1310 | -10/Exiles | Aligned with FarCom system 1311 | -10/Exiles | Given EX-Vault access code 1343 | -10/Exiles | Opened EX-Vault 1353 | -10/Exiles | Found AWS/Gauss 1380 | -10/Exiles | Warned to stay clear of 0b10 Research branches 1395 | -10/Exiles | Exiles lab attacked by MAIN.C 1458 | -10/Exiles | Discovered new exit (range 12) 1471 | -10/Exiles | Left Exiles lab with AWS/Gauss 1471 | -10/Exiles | Entered Mines 1595 | -9/Mines | Discovered new exit (range 9) 1605 | -9/Mines | Entered Materials 1605 | -8/Materials | Evolved 4 slots: Propulsion x2, Utility x2 1820 | -8/Materials | Lost 6 parts (1p4n1u) 1874 | -8/Materials | AWS/Gauss suddenly broke down 2090 | -8/Materials | Discovered new exit (range 15) 2116 | -8/Materials | Entered Factory 2116 | -7/Factory | Evolved 2 slots: Propulsion x2 2644 | -7/Factory | Sucked down chute 2644 | -7/Factory | Entered Waste 2645 | -7/Waste | Met a frightened Derelict 2659 | -7/Waste | EMP discharged 2677 | -7/Waste | Spotted C-40 Crusher 2677 | -7/Waste | Spotted C-40 Crusher 2682 | -7/Waste | Spotted C-40 Crusher 2705 | -7/Waste | Crushed by Compactor (1 part destroyed, 2 dropped) 2707 | -7/Waste | Spotted C-40 Crusher 2709 | -7/Waste | Crushed by Compactor (1 part destroyed, 1 dropped) 2710 | -7/Waste | Crushed by Compactor (1 part destroyed, 2 dropped) 2711 | -7/Waste | Spotted C-40 Crusher 2712 | -7/Waste | Spotted C-40 Crusher 2712 | -7/Waste | Crushed by Compactor (1 part destroyed, 1 dropped) 2743 | -7/Waste | Lost 7 parts (2n3u2w) 2744 | -7/Waste | Discovered new exit (range 10) 2755 | -7/Waste | Entered Factory 3079 | -7/Factory | Found Powered Armor 3082 | -7/Factory | Found Powered Armor 3225 | -7/Factory | Garrison activated, responded to threat 3318 | -7/Factory | Core integrity fell below 50% 3339 | -7/Factory | Core integrity fell below 20% 3345 | -7/Factory | Destroyed by G-47 Trooper with Particle Gun Last Messages --------------- 03299_ Acquired Carbon-fiber Leg. 03299_ Hvy. Ion Cannon severed. 03303_ Acquired 119 matter. 03305_ K-01 Serf collects debris. 03306_ Aluminum Leg destroyed. 03306_ K-01 Serf destroyed. 03307_ Acquired Hvy. Ion Cannon. 03309_ Extracted 50 matter. 03310_ Acquired Sml. Matter Pod. 03316_ Hvy. Ion Cannon destroyed. 03317_ Carbon-fiber Leg destroyed. 03317_ Imp. Targeting Computer destroyed. 03319_ Critical hit (Burn: +37). 03320_ Carbon-fiber Leg destroyed. 03321_ Acquired Aluminum Leg. 03326_ Critical hit (Burn: +37). 03332_ Hvy. Deuterium Engine severed. 03338_ Aluminum Leg destroyed. 03341_ System corrupted: Heat flow error (+252). 03344_ Sml. Matter Pod severed. Map ----- +----------------------------------------------------+ | ?????????????????????????????????????????????????? | | ?????????????????????????????????????????????????? | | ?????????????????????????????????????????????????? | | ?????????????????????????????????????????????????? | | ?????????????????????????????????????????????????? | | ?????????????????????????????????????????????????? | | ?????????????????????????????????????????????????? | | ?????????????????????????????????????????????????? | | ?????????????????????????????????????????????????? | | ?????????????????????????????????????????????????? | | ??????????????????????? ??????????????????????? | | ?????????????????????+ ??????????????????????? | | ?????????????????????# ??????????????????????? | | ?????????????????????# #?????????????????????? | | ?????????????????????# #?????????????????????? | | ?????????????????????# #?????????????????????? | | ?????????????????????# #?????????????????????? | | ?????????????????????# #?????????????????????? | | #????????????????????# #?????????????????????? | | #######??????????????# #?????????????????????? | | # #??????????????# #?????????????????????? | | # #??????????????# #?????????????????????? | | # #??????????????# #?????????????????????? | | + #??????????????# #?????????????????????? | | # #??????????????# #?????????????????????? | | # #??????????????# @ #?????????????????????? | | # #??????????????# l #?????????????????????? | | # #????????? ????# #??"??????????????????? | | # #?#+############ * #?""??????????????????? | | # [ g # "???????????????????? | | # % # ????????????????????? | | # ^^ +?????????????????????? | | # ^ g # ????????????????????? | | # #??????"??????????????? | | #########+############ #?????????????????????? | | #????????????????????# % #?? ? ???????#????????? | | ?????? "?????????????# = #?????????????????????? | | #### "?"???????????# #?????????????????????? | | + ?????????????#?# #?#??#????????????????? | | ##?????????? ??????# #???#?#???#????????#??? | | #????????????????#?# #??#???#????#???#?????? | | #??????????????????# #??##??????#??????????? | | # #? ?????????? ?????# ##############????????? | | # #??????????????#??## # """"" #????????? | | # #??????"?????????## # " " ""T"" #???#????? | | # #????????? ??##??#T # " " #????????? | | # #?? ?? ??????#??### # " " #?#??????? | | # ##+#???#+#???##?#??# # " " #????????? | | # #?#?# ###?????### # " " #????????? | | # #???# #??#???#?## # " " #????????? | +----------------------------------------------------+ Best States ------------- Heat Dissipation 34 Energy Generation 18 Energy Capacity 310 Matter Stores 300 Matter Capacity 350 Sight Range 16 Terrain Scan Range 16 Terrain Scan Density 10 Armor Coverage 800 Evasion (%) 63 Targeting Accuracy 12 Melee Accuracy 5 Offensive Hacking 10 Item Schematics ----------------- None Robot Schematics ------------------ None Fabricated ------------ Nothing Alien Tech Used ----------------- None Achievements -------------- True Hacker Challenges ------------ None Game ------ Seed LatentMomentumShielding Manual? 0 Play Time 00:35:43 Cumulative 8.3 hours Start 2025.03.26 @ 17:25:43 End 2025.03.26 @ 17:58:50 Sessions 1 Manual Loads 0 Difficulty Rogue Special Mode None Game No. 22 Rogue 18 Adventurer 4 Explorer 0 Win Type - Total 0 Types 0/0/0/0/0/0/0/0/0 Lore% 11 Gallery% 16 Achievement% 18 Wizard Run 0 Options --------- Layout 0 ASCII 0 Keyboard 0 Movement Numpad Keybinds 0 Fullscreen 2 Font 36/Smallcaps Map View 76x50 Zoom Use 0% Tactical HUD 1 Map Filters NONE Filters NONE Steam 1 RUN: 9b6f7f59-7f46-409d-b444-e2ffc28c8872